{"text_format":"1","workbook":"xlsx","n_sheets":2,"sheets":["Bestellung","Informationen"],"not_rendered":{"charts":0,"images":1,"macros":1,"external_links":0,"defined_names":4,"comments":1,"pivot_tables":0},"unopened":[],"bounds":{"document_bytes":16777216,"sheet_cells":100000,"rows_first":2000,"rows_last":500,"rows_between":2000,"halvings":0,"cell_chars":16384,"cell_head_chars":4096},"cells_cut":0,"cells_raw":0,"read":"whole","date_system":"1900"}

{"sheet":"Bestellung","index":0,"n_rows":95,"n_cols":21,"rows_kept":95,"cut":false,"hidden":false,"merged":[[86,2,88,2],[89,2,91,2],[65,0,66,0],[65,1,66,1],[65,2,66,2],[73,0,73,4],[76,1,76,4],[78,1,78,4],[80,1,80,4],[81,2,81,4],[13,7,14,13],[16,7,17,13],[4,0,4,2],[27,8,27,12],[27,14,27,18],[13,0,14,0],[13,1,14,1],[13,2,14,2],[26,1,27,1],[26,2,27,2],[21,0,22,0],[21,1,22,1],[21,2,22,2],[2,0,2,2],[1,0,1,2],[3,0,3,2],[26,0,27,0],[59,0,60,0],[59,1,60,1],[59,2,60,2],[35,0,36,0],[35,1,36,1],[35,2,36,2],[53,0,54,0],[53,1,54,1],[53,2,54,2],[44,0,45,0],[44,1,45,1],[44,2,45,2]]}
["CERTNET GmbH  -  Forstfeldstr. 2  -  34123 Kassel"]
[null,null,null,"Datum:"]
[null,null,null,"Ansprechpartner/in:"]
[null,null,null,"E-Mailadresse"]
[null,null,null,"Telefon:"]
[null,null,null,"Vertragslaufzeit:"]
["Bitte auswählen ->",null,null,"Kalkulation eines MS-Lizenzvertrags"]
[null,null,null,"Bestellung eines MS-Lizenzvertrags"]
[{"$f":"IF(D9=1,\"KALKULATION\",\"BESTELLUNG\")","v":"KALKULATION"},null,null,1,1]
[null,null,null,null,1]
[{"$f":"IF(D9=1,\"(Diese Kalkulation dient internen Zwecken)\",\"Hallo CERTNET-Team,\")","v":"(Diese Kalkulation dient internen Zwecken)"},null,null,null,3]
[{"$f":"IF(D9=1,\" \",\"bitte führen Sie die folgende Bestellung umgehend durch.\")","v":" "}]
[]
["Anzahl FTEs","Art.-Nr.","Hauptprodukte (je FTE)","Einzelpreis pro Jahr","Gesamtpreis pro Jahr",null,"Hinweise: ","Bitte unbedingt die Notizen (rote Dreiecke, rechts oben) in einigen Zellen berücksichtigen!\nMenü Überprüfen / Notizen / Alle Notizen anzeigen"]
[null,null,null,"exkl. MwSt.","exkl. MwSt."]
[0,"OVS-001","MS Desktop Education inkl. Software Assurance, beinhaltet Windows EDU Upgrade, MS Office Pro Plus und CoreCAL",69.05,{"$f":"A16*D16","v":0}]
[0,"OVS-003","MS Office Pro Plus Faculty inkl. Software Assurance",35.99,0,null," ","FTE = Full time equivalent: Anzahl der Vollzeit-Mitarbeiter/innen und Lehrkräfte und alle Personen, die an Ihrer Bildungseinrichtung 200 oder mehr Stunden pro Jahr beschäftigt sind und die gebuchte Software nutzen. Schüler/innen, Studierende und Kursteilnehmer/innen werden nicht dazu gerechnet."]
[0,"OVS-002","MS Windows Edu E3 - Upgr. Faculty inkl. Software Assurance ",22.2,0]
[0,"OVS-023","MS Office 365 Apps for Faculty ",28.7,{"$f":"A19*D19","v":0}]
[0,"OVS-097","MS Office 365 A3 for Faculty",42,{"$f":"A20*D20","v":0}]
[]
["Anzahl","Art.-Nr.","Kostenfreie Zusatzprodukte","Einzelpreis pro Jahr","Gesamtpreis pro Jahr"]
[null,null,null,"exkl. MwSt.","exkl. MwSt."]
[1,"OVS-CNT","Kostenfreie Nutzung von Lerninhalten für MS Office",0,0]
[1,"OVS-075","Kostenfreie Berechtigung f.  Azure Dev Tools for Teaching",0,0]
[]
["Anzahl","Art.-Nr.","Server (je Stück, außer Zeile 30 und 34)","Einzelpreis pro Jahr","Gesamtpreis pro Jahr"]
[null,null,null,"exkl. MwSt.","exkl. MwSt.",null,null,null,"MS Windows Server Standard (A28)",null,null,null,null,null,"MS Windows Server Datacenter (A32)",null,null,null,null,null,"Hinweis:"]
[0,"OVS-006","MS Exchange Server Standard - inkl. Software Assurance",81.400000000000006,{"$f":"A29*D29","v":0},null,null,null,"Server","Anz.\nProzessoren","Kerne je\nProzessor","Anzahl\nLizenzen","Bestell-\nMenge",null,"Server","Anz.\nProzessoren","Kerne je\nProzessor","Anzahl\nLizenzen","Bestell-\nMenge",null,"Bitte tragen Sie die Anzahl der Server Standard und/oder Anzahl\nder Server Datacenter, sowie die Anzahl der Kerne (Cores) ein."]
[{"$f":"M35","v":0},"OVS-070","MS Windows Server Standard - inkl. Software Assurance",8.4499999999999993,0,null,null,null,"Server 1",0,0,{"$f":"IF(J30=0,\n                0,\n                IF(IF(J30>=3,\n                                             IF(K30<8,J30*8,J30*K30),\n                                             J30*K30)<16,\n                               16,\n                               IF(J30>=3,\n                                              IF(K30<8,J30*8,J30*K30),\n                                              J30*K30)))","v":0},{"$f":"L30/2","v":0},null,"Server 1",0,0,{"$f":"IF(P30=0,\n                0,\n                IF(IF(P30>=3,\n                                             IF(Q30<8,P30*8,P30*Q30),\n                                             P30*Q30)<16,\n                               16,\n                               IF(P30>=3,\n                                              IF(Q30<8,P30*8,P30*Q30),\n                                              P30*Q30)))","v":0},{"$f":"R30/2","v":0},null,"Das Ergebnis wird automatisch in die Kalkulation übernommen.\nFalls Sie mehr als 5 Server nutzen möchten, informieren Sie uns bitte."]
[0,"OVS-019","MS SharePoint Server - inkl. Software Assurance",624.65,0,null,null,null,"Server 2",0,0,{"$f":"IF(J31=0,\n                0,\n                IF(IF(J31>=3,\n                                             IF(K31<8,J31*8,J31*K31),\n                                             J31*K31)<16,\n                               16,\n                               IF(J31>=3,\n                                              IF(K31<8,J31*8,J31*K31),\n                                              J31*K31)))","v":0},{"$f":"L31/2","v":0},null,"Server 2",0,0,{"$f":"IF(P31=0,\n                0,\n                IF(IF(P31>=3,\n                                             IF(Q31<8,P31*8,P31*Q31),\n                                             P31*Q31)<16,\n                               16,\n                               IF(P31>=3,\n                                              IF(Q31<8,P31*8,P31*Q31),\n                                              P31*Q31)))","v":0},{"$f":"R31/2","v":0}]
[0,"OVS-021","MS Project Server - inkl. Software Assurance",53.25,0,null,null,null,"Server 3",0,0,0,0,null,"Server 3",0,0,0,0,null,"So rechnet Microsoft:"]
[0,"OVS-011","MS SQL Server Standard Edition - inkl. Software Assurance",93.8,0,null,null,null,"Server 4",0,0,0,0,null,"Server 4",0,0,0,0,null,"1. Pro Server müssen mindestens 16 Cores lizenziert sein (auch, wenn\nweniger vorhanden sind)."]
[0,"OVS-074","MS Windows Server Datacenter Core - inkl. Software Assurance",48.2,0,null,null,null,"Server 5",0,0,0,0,null,"Server 5",0,0,0,0,null,"2. Ab 3 Prozessoren muss jeder Prozessor mit mind. 8 Cores lizenziert werden (auch, wenn weniger vorhanden sind)."]
[null,null,null,null,null,null,null,null,null,"Summe wird nach Zelle A30 übertragen:",null,null,{"$f":"SUM(M30:M34)","v":0},null,null,"Summe wird nach Zelle A34 übertragen:",null,null,{"$f":"SUM(S30:S34)","v":0}]
["Anzahl FTEs","Art.-Nr.","MS Server CALs (Zugriffslizenzen) (je FTE), inkl. Software Assurance","Einzelpreis pro Jahr","Gesamtpreis pro Jahr"]
[null,null,null,"exkl. MwSt.","exkl. MwSt."]
[0,"OVS-007","MS Exchange Server Standard CAL",3.1,{"$f":"A38*D38","v":0}]
[0,"OVS-005","MS Windows Server Standard CAL",3.6,0]
[0,"OVS-025","MS SharePoint Standard CAL",7.46,0]
[0,"OVS-026","MS Project Server User-CAL",19.399999999999999,0]
[0,"OVS-017","MS SQL Server CAL",21.7,0]
[0,"OVS-095","Core CALClient Access License",15,0]
[]
["Anzahl FTEs","Art.-Nr.","Zusätzliche Produkte (je FTE)","Einzelpreis pro Jahr","Gesamtpreis pro Jahr"]
[null,null,null,"exkl. MwSt.","exkl. MwSt."]
[0,"OVS-008","MS Project Professional - inkl. Software Assurance",8.1999999999999993,{"$f":"A47*D47","v":0}]
[0,"OVS-020","MS Visio Professional - inkl. Software Assurance",7.16,{"$f":"A48*D48","v":0}]
[0,"OVS-028","MS Visual Studio Pro - inkl. Software Assurance",68.5,0]
[0,"OVS-052","MS Windows Remote Desktop Services CAL Enterprise - inkl. Software Assurance",8.1999999999999993,{"$f":"A50*D50","v":0}]
[0,"OVS-091","Intune Open - Faculty",0,{"$f":"A51*D51","v":0}]
[0,"OVS-092","Intune Add-On Open Faculty",7,{"$f":"A52*D52","v":0}]
[]
["Anzahl ","Art.-Nr.","Zusätzliche Produkte (je Stück)","Einzelpreis pro Jahr","Gesamtpreis pro Jahr"]
[null,null,null,"exkl. MwSt.","exkl. MwSt."]
[0,"OVS-027","MS Project Professional Enterprise Device - inkl. Software Assurance",82.25,{"$f":"A56*D56","v":0}]
[0,"OVS-018","MS Visio Professional Enterprise Device - inkl. Software Assurance",70.8,{"$f":"A57*D57","v":0}]
[0,"OVS-015","MS Windows Remote Desktop Services User CAL - inkl. Software Assurance",11.45,{"$f":"A58*D58","v":0}]
[]
["Anzahl","Art.-Nr.","Kostenfreie Leistungen","Einzelpreis pro Jahr","Gesamtpreis pro Jahr"]
[null,null,null,"exkl. MwSt.","exkl. MwSt."]
[0,"OVS-010","Office 365 Student Benefit  (Installierte Vollversion von MS Office auf bis zu 15 Geräten)",0,{"$f":"A62*D62","v":0}]
[0,"OVS-014","Office 365 Teachers Benefit  (Installierte Vollversion von MS Office auf bis zu 15 Geräten)",0,{"$f":"A63*D63","v":0}]
[0,"OVS-029","MS Windows 10 Student Benefit",0,{"$f":"A64*D64","v":0}]
[]
["Anzahl","Art.-Nr.","Zusätzlicher Support (optional)","Einzelpreis pro Jahr","Gesamtpreis pro Jahr"]
[null,null,null,"exkl. MwSt.","exkl. MwSt."]
[0,"OVS-TNT","Tenant-Erstellung. Wir richten Ihre MS Office 365-Umgebung für Sie ein.",19.899999999999999,{"$f":"A68*D68","v":0}]
[0,"OVS-SRV","Servicevertrag 365. Unterstützung bei der Einführung und Umsetzung von MS Office 365 für 365 Tage.",365,{"$f":"A69*D69","v":0}]
[null,null,null,"Summe exkl. MwSt. ",{"$f":"E69+E68+E64+E63+E62+E58+E57+E56+E52+E51+E50+E49+E48+E47+E43+E42+E41+E40+E39+E38+E34+E33+E32+E31+E30+E29+E25+E24+E20+E19+E18+E17+E16","v":0}]
[null,null,"(19%, da die Leistungen über den 30.12.2020 hinaus gehen)","MwSt. 19 %",{"$f":"E72-E70","v":0}]
[null,null,null,"Summe inkl. MwSt.",{"$f":"E70*1.19","v":0}]
[]
["Lizenz- und/oder Nutzungsrechte sowie Eigentum an den Vertragsgegenständen werden vorbehaltlich der vollständigen Zahlung der vereinbarten und in Rechnung gestellten Entgelte übertragen. CERTNET behält sich Schreibfehler oder Irrtümer vor. "]
[]
["Bitte bestätigen Sie die folgenden Angaben:"]
[null,"Bei unserer Einrichtung handelt es sich um eine akademische oder Ausbildungseinrichtung, die von der zuständigen Regierungsaufsichtsbehörde, in dem Land, in dem die Ausbildungseinrichtung ihren Hauptsitz hat, genemigt wurde. "]
[]
[null,"Neben unserem Ausbildungsangebot für diesen Bereich, bieten wir keine weiteren kommerziellen Dienste an. Uns ist bewusst, dass eine Lizenzierung nur dann erfolgen darf, wenn sie zu 100% in unserer Bildungseinrichtung eingesetzt wird. Eine Mischung aus den Lizenzen dieser Bestellung und anderen Lizenzen (z.B. kommerziellen Lizenzen) erfolgt nicht. Es ist uns bekannt, dass die Software aus dieser Lizenzierung ausschließlich zu nicht-kommerziellen Zwecken eingesetzt werden darf. "]
[]
[null,"Die Definition der Bezugsberechtigung wird von Microsoft durch die \"Microsoft-Berechtigungskriterien für Qualifizierte Nutzer für Forschung & Lehre (EMEA)\" definiert. Wir bestätigen, dass unsere Institution/Firma dieser Definition entspricht."]
[null,"Dokument"]
[]
["Hinweis: Ohne die Bestätigung (angekreutzte Felder) kann die Bestellung nicht durchgeführt werden.",null,null,"Aktueller Status:",{"$f":"IF(AND(B86=TRUE,B87=TRUE,B88=TRUE),\"Bestellung ist möglich\",\"Bestellung ist NICHT möglich!\")","v":"Bestellung ist NICHT möglich!"}]
[null,false]
[null,false]
[null,false]
[null,true]
["Ort und Datum:"]
[]
[]
["Unterschrift:"]
[]
[]
["Bitte senden Sie Ihre Bestellung per E-Mail an stellmacher@certnet.de oder faxen Sie sie an +49 (561) 81679-129. Telefonische Beratung erhalten Sie unter +49 (561) 81679-120."]

{"sheet":"Informationen","index":1,"n_rows":29,"n_cols":2,"rows_kept":29,"cut":false,"hidden":false,"merged":[]}
[null,"Was sind die Vorteile und Rahmenbedingungen der OVS-ES Lizenzierung (Open Value Subsription - Education Solution)?"]
[]
[null,"Bei der OVS-ES Lizenzieung handelt es sich um eine Software-Miete (kein Kauf). Sie können wählen, ob Sie die Lizenzierung für 12 Monate oder für 36 Monate in Anspruch nehmen. Der Vorteil beim 36 Monatsvertrag liegt in der Preisgarantie für viele Produkte. Bei dem im Angebot hinterlegten Preisen handelt es sich um ein jährlichen Betrag. D.h. bei einem 3-Jahresvertrag zahlen Sie den Betrag pro Jahr und nicht insgesamt für 3 Jahre im Voraus."]
[]
[null,"Die Berechnungsgrundlage wird anhand der FTE (Full Time Equivalents) vorgenommen. Gezählt werden hierbei alle Personen, die an Ihrer Institution tätig sind und die bestellte Software nutzen. Von der Berechnungsgrundlage anhand der Mitarbeiter/innen und Lehrkräfte sind jedoch nur die Software-Lizenzen wie z. B. MS Office, MS Windows, Desktop Education betroffen. Server-Produkte werden nach Bedarf (pro Stück) bestellt. "]
[]
[null,"Ebenfalls ist zu beachten, dass es sich um ein standortbezogene Lizenzierung handelt. "]
[]
[null,"Ein weiterer Vorteil ist, dass die gesamte Institution am Standort lizenzrechtlich abgedeckt ist, wenn mind. ein Hauptprodukt (z. B. MS Office 365 Apps abgedeckt) in der Anzahl der FTE bestellt wird. Sie dürfen im Zusammenhang mit der OVS-ES Lizenzierung alle Computer der Verwaltung und des Schulungsbereichs bestücken (kommerzielle Nutzung ist nicht möglich!). Bei den Windows-Lizenzen handelt es ich um ein Windows Upgrade, d. h. es muss eine vor-installierte Windows-Version auf dem PC vorhanden sein bzw. der PC muss ursprünglich mit einem MS Windows Betriebssystem ausgeliefert wurden sein (ab Windows 7 aufwärts bei Windows 10 Upgrade). Sollte z. B. keine Windows-Version auf dem PC installiert sein, muss mindestens ein Lizenzkey-Aufkleber auf dem PC vorhanden sein, der besagt, dass dieser PC mit MS Windows-OEM ausgeliefert wurde. Sollte ggf. auch dies nicht der Fall sein, können Sie OEM-Versionen in diesem Zusammenhang über uns beziehen."]
[]
[null,"Falls Sie auch kommerzielle Kunden bedienen: Es ist wichtig, dass die Academic-bezugsberechtigten Bereiche von den anderen (kommerziellen-) Bereichen der Einrichtung räumlich und organisatorisch getrennt werden. Konkret bedeutet dies, dass mit den Lizenzen nur die PC´s am Standort bestückt werden. Ebenso ist es sehr wichtig, dass die MS Lizenzen aus dem OVS-ES Programm nur für Education-Berechtigte eingesetzt werden (Schüler/innen, Studenten, Auszubildende, SGB, ESF). So genannte Selbstzahler oder Firmen (kommerziell) sind ausgeschlossen. Diese Räume müssen gesondert (kommerziell) lizenziert werden."]
[]
[null,"Schüler/innen, Studierende, bzw. Teilnehmer/innen können ebenfalls von der Lizenzierung profitieren. Microsoft bietet dieser Gruppe einer OVS-ES-lizenzierten Bildungseinrichtung kostenfrei MS Office 365 ProPlus inkl. lokaler Installation der Desktop-Apps. Mitarbeiter/innen, inkl. der Lehrkräfte können ebenfalls MS Office 365 ProPlus auf Ihren privaten Devices kostenfrei nutzen."]
[null,"Wichtig: Sobald ein/e Schüler/in, Student/in bzw. Teilnehmer/in oder Lehrkraft bzw. Mitarbeiter/in die Institution verlässt, muss MS Office 365 ProPlus für diese Person umgehend deaktiviert werden. "]
[]
[null,"Azure Dev Tools for Teaching-Abonnement - Durch einen OVS-ES-Vertrag erhalten Sie auch die Berechtigung für ein kostenloses Onlineabonnement von Azure Dev Tools for Teaching, das Sie in Ihrer gesamten Organisation für Schulungszwecke verwenden können. Damit können Sie Ihre Labors oder Schulungsräume mit den neuesten Entwickler-, Entwurfs- und Servertools von Microsoft ausstatten, um individuellen oder Kursunterricht für Ihre Schüler/Studierenden und Lehrkräfte zu unterstützen. Software, die über das Azure Dev Tools for Teaching-Abonnement erworben wurde, darf nur zu Schulungszwecken verwendet werden. Die Verwendung für kommerzielle Zwecke oder in den Produktionsabläufen der Einrichtung ist nicht zulässig. "]
[null,"Die Lizenzen im OVS-ES Lizenzierungsprogramm sind Down- bzw. Upgrade-fähig (Software Assurance). D.h. Sie können jederzeit zwischen der aktuellen Version und den zwei Versonen zuvor wählen."]
[null,"Mit dem OVS-ES Lizenzmodell haben Sie jährliche gleichbleibende und vor allem planbare Kosten. Es ist eine einfache und kostengünstige Beschaffung von Lizenzen für Einrichtungen jeder Größe aus dem Bereich Forschung & Lehre."]
[]
[null,"Selbstverständlich stehen wir Ihnen bei Rückfragen bzw. für weitere Informationen zur Verfügung - rufen Sie uns einfach an oder mailen Sie uns!"]
[]
[null,"Herzliche Grüße aus Kassel!"]
[null,"- Ihr CERTNET-Team -"]
[]
[null,"CERTNET GmbH"]
[null,"Forstfeldstr. 2 - D-34123 Kassel"]
[null,"E-Mail: info@certnet.de"]
[null,"Telefon: +49 (561) 816791-20"]
[null,"Fax: +49 (561) 816791-29"]